Cogmind - Beta 9.3 @@@ ROGUE MODE // 2019.12.28 @ 01:19:15 Player: Tough2Name Result: Destroyed by EX-DEC with AWS/EX-DEC Performance ------------- Evolutions (1) 500 Regions Visited (5) 1000 Robots Destroyed (43) 215 Value Destroyed (620) 620 Prototype IDs (2) 40 Alien Tech Used (0) 0 Bonus (0) 0 TOTAL SCORE: 2375 Bonus ------- None Cogmind --------- Core Integrity 0/400 Matter 261/300 Energy 128/160 System Corruption 13% Temperature Cool (1) Movement Flying (50) Location -9/Exiles Parts ------- > --- POWER (1) -------- Light Nuclear Core > --- PROPULSION (2) --- Improved Aluminum Leg VTOL Module > --- UTILITY (4) ------ (None) > --- WEAPON (2) ------- (None) > --- INVENTORY (4) ---- Makeshift Power Source Aluminum Leg Aluminum Leg VTOL Module Peak State ------------ > --- POWER ------------ Light Ion Engine > --- PROPULSION ------- Light Treads Compact Wheel > --- UTILITY ---------- Large Storage Unit Large Storage Unit Large Storage Unit Light Armor Plating > --- WEAPON ----------- EM Pulse Gun Heavy Assault Rifle > --- INVENTORY -------- Ion Engine Ion Engine Ion Engine Light Ion Engine Light Nuclear Core Aluminum Leg Improved Aluminum Leg Compact Wheel VTOL Module VTOL Module Large Storage Unit Improved Targeting Computer Improved EM Shotgun Small Laser Beam Rifle Beamcaster Assault Rifle Assault Rifle Light Assault Rifle Light Assault Rifle Light Cannon [Rating: 13] Favorites ----------- Power Light Ion Engine Engine Light Ion Engine Power Core Light Nuclear Core Propulsion Light Treads Treads Light Treads Leg Improved Aluminum Leg Wheel Compact Wheel Flight Unit VTOL Module Utility Large Storage Unit Storage Large Storage Unit Protection Light Armor Plating Weapon Light Assault Rifle Energy Gun EM Pulse Gun Ballistic Gun Light Assault Rifle Build | -11 -10 -10 -9 -9 -9 ------- Run | Scr Mat Min Mat Min Exi Slots Evolved 2 | . . . 2 . . Power . | . . . . . . Propulsion . | . . . . . . Utility 2 | . . . 2 . . Weapon . | . . . . . . Parts Attached 43 | 5 3 7 14 6 8 Power 7 | . 1 1 3 1 1 Engine 6 | . 1 1 3 1 . Core 1 | . . . . . 1 Reactor . | . . . . . . Propulsion 9 | 2 . 1 1 2 3 Treads 3 | 1 . . 1 1 . Leg 2 | . . . . . 2 Wheel 3 | 1 . 1 . 1 . Hover . | . . . . . . Flight 1 | . . . . . 1 Utility 9 | 1 2 . 6 . . Device . | . . . . . . Storage 7 | 1 2 . 4 . . Processor . | . . . . . . Hackware . | . . . . . . Protection 2 | . . . 2 . . Artifact . | . . . . . . Weapon 18 | 2 . 5 4 3 4 Energy Gun 7 | . . 3 1 1 2 Energy Cannon . | . . . . . . Ballistic Gun 11 | 2 . 2 3 2 2 Ballistic Cannon . | . . . . . . Launcher . | . . . . . . Special Weapon . | . . . . . . Impact Weapon . | . . . . . . Slashing Weapon . | . . . . . . Piercing Weapon . | . . . . . . Special Melee Weapon . | . . . . . . Unidentified Prototypes . | . . . . . . Parts Lost 18 | . . 4 1 6 7 Power 4 | . . 1 1 1 1 Propulsion 4 | . . . . 2 2 Utility 1 | . . . . 1 . Weapon 9 | . . 3 . 2 4 Highest Loss Streak 7 | . . 2 1 6 7 Average Slot Usage (%) 94 | . 96 99 96 82 83 Engine 11 | . 14 13 10 8 9 Treads 11 | . 14 14 11 9 9 Wheel 11 | . 14 14 11 8 8 Storage 30 | . 24 28 33 33 32 Protection 2 | . . . 8 1 . Energy Gun 10 | . . 11 11 9 10 Ballistic Gun 14 | . 28 15 11 11 11 Naked Turns . | . . . . . . Heaviest Build 58 | 7 38 39 58 58 58 Greatest Support 23 | 16 16 20 16 16 23 Greatest Overweight (x) 3 | 2 2 2 3 3 3 Average Overweight (x) 2 | . 1 1 2 3 2 Largest Inventory Capacity 26 | 6 16 16 26 22 22 Average Capacity 18 | 5 14 16 21 22 21 Most Carried 22 | 4 12 16 22 21 17 Average Carried 15 | 3 7 15 19 17 15 Final Capacity 22 | 6 16 16 22 22 4 Final Carried 21 | 4 12 16 21 16 4 Class Distribution -------------------- 43% | Hauler-Mutant 39% | Mutant 16% | Scavenger-Mutant Dominant Class ---------------- Mutant | -10/Materials Mutant | -10/Mines Hauler-Mutant | -9/Materials Hauler-Mutant | -9/Mines Hauler-Mutant | -9/Exiles Resources | -11 -10 -10 -9 -9 -9 ----------- Run | Scr Mat Min Mat Min Exi Matter Collected 734 | 213 84 120 165 68 84 Remotely . | . . . . . . Salvage Created 978 | . 37 358 374 82 127 Parts 63 | . 5 20 32 . 6 Haulers Intercepted 1 | . . . 1 . . Recyclers Shooed 1 | . . 1 . . . Parts Field Recycled . | . . . . . . Retrieved Matter . | . . . . . . Parts Self-Destructed . | . . . . . . Prevented . | . . . . . . Kills | -11 -10 -10 -9 -9 -9 ------- Run | Scr Mat Min Mat Min Exi Combat Hostiles Destroyed 36 | . 3 11 13 5 4 Guns 34 | . 3 11 11 5 4 AOE 2 | . . . 2 . . Classes Destroyed 8 | . 1 2 3 1 1 Worker 2 | . . . 2 . . Hauler 1 | . . . 1 . . Recycler 1 | . . 1 . . . Swarmer 17 | . 3 6 8 . . Grunt 9 | . . 5 4 . . Sentry 1 | . . . 1 . . Zionite 3 | . . . . . 3 Assembled 9 | . . . . 5 4 Best Kill Streak 6 | . 3 3 6 5 4 Combat Bots Only 5 | . 3 3 4 5 4 Max Kills in Single Turn 4 | . 1 2 4 1 2 Gunslinging 1 | . . . 1 . . Exploded 2 | . . . 2 . . Melee . | . . . . . . Uniques/NPCs Destroyed . | . . . . . . Combat | -11 -10 -10 -9 -9 -9 -------- Run | Scr Mat Min Mat Min Exi Damage Taken 2659 | . 59 588 493 466 1053 Core 500 | . 10 86 115 26 263 Absorbed by Shields . | . . . . . . Core Remaining (%) 80 | 100 . 61 . . . Volleys Fired 102 | . 8 32 30 12 20 Largest 2 | . 2 2 2 2 2 Hottest 95 | . 40 85 76 76 95 Shots Fired 199 | . 16 62 60 24 37 Gun 199 | . 16 62 60 24 37 Cannon . | . . . . . . Launcher . | . . . . . . Special . | . . . . . . Kinetic 113 | . 16 34 30 12 21 Thermal 44 | . . 15 12 9 8 Explosive . | . . . . . . Electromagnetic 42 | . . 13 18 3 8 Robot Hit Streak 12 | . 3 5 5 7 12 Robot Miss Streak 4 | . 2 3 2 1 4 Penetration Max . | . . . . . . Secondary Targets 9 | . 2 1 2 2 2 Max Gunslinging Chain 1 | . 1 1 1 1 1 Shots Hit Robots 125 | . 8 39 35 19 24 Core Hits 65 | . 4 19 21 10 11 Critical Hits . | . . . . . . Critical Kills . | . . . . . . Critical Parts Destroyed . | . . . . . . Melee Attacks . | . . . . . . Impact . | . . . . . . Slashing . | . . . . . . Piercing . | . . . . . . Sneak Attacks . | . . . . . . Combat Hostiles . | . . . . . . Follow-up Attacks . | . . . . . . Damage Inflicted 1898 | . 98 447 824 238 291 Guns 1422 | . 98 447 348 238 291 Cannons . | . . . . . . Explosions 476 | . . . 476 . . Melee . | . . . . . . Ramming . | . . . . . . Kinetic 619 | . 98 154 116 88 163 Thermal 900 | . . 177 578 101 44 Explosive . | . . . . . . Electromagnetic 379 | . . 116 130 49 84 Impact . | . . . . . . Slashing . | . . . . . . Piercing . | . . . . . . Highest Corruption 13 | . . . 3 7 13 Average Corruption 7 | . . . 2 6 8 Corruption Purged . | . . . . . . Effects 23 | . . . 2 4 17 Message Errors 7 | . . . . 2 5 Matter Fused 2 | . . . . . 2 Heat Flow Errors 4 | . . . 1 . 3 Energy Discharges 4 | . . . 1 . 3 Parts Rejected 1 | . . . . 1 . Data Loss (minor) 1 | . . . . . 1 Misfires 1 | . . . . . 1 Targeting Errors 1 | . . . . 1 . Weapon Failures 2 | . . . . . 2 Overload Shots . | . . . . . . Overflow Damage 74 | . . . 74 . . Projectiles . | . . . . . . Explosions 74 | . . . 74 . . Melee . | . . . . . . Knockbacks . | . . . . . . Impact . | . . . . . . Kinetic . | . . . . . . Secondary . | . . . . . . Self-Inflicted Damage 129 | . . . 129 . . Shots 2 | . . . 2 . . Rammed . | . . . . . . Targets Rammed . | . . . . . . Kicked . | . . . . . . Crushed . | . . . . . . Highest Temperature 334 | . . 214 203 104 334 Average Temperature 84 | . . 79 55 56 141 Received Heat Transfer 782 | . . 249 93 . 440 Effects 1 | . . . . . 1 Energy Bleed 1 | . . . . . 1 Siege Activations . | . . . . . . Robots Corrupted . | . . . . . . Combat Hostiles . | . . . . . . Parts Fried . | . . . . . . Impact Corruptions . | . . . . . . Robots Melted . | . . . . . . Combat Hostiles . | . . . . . . Parts Melted 2 | . . 1 1 . . Heat Transferred 1354 | . . 444 559 259 92 Parts Sabotaged . | . . . . . . Parts Stolen . | . . . . . . Parts Stripped . | . . . . . . Power Chain Reactions . | . . . . . . Missiles Intercepted . | . . . . . . Alert | -11 -10 -10 -9 -9 -9 ------- Run | Scr Mat Min Mat Min Exi Peak Influence 358 | . 103 159 358 117 . Average Influence 133 | . 66 102 211 75 . Maximum Alert Level 1 | . . . 1 . . Low Security (%) 86 | 100 100 100 63 100 . Level 1 13 | . . . 36 . . Level 2 . | . . . . . . Level 3 . | . . . . . . Level 4 . | . . . . . . Level 5 . | . . . . . . High Security . | . . . . . . Max Security . | . . . . . . Squads Dispatched 3 | . . . 3 . . Investigation . | . . . . . . Extermination . | . . . . . . Reinforcement 3 | . . . 3 . . Assault . | . . . . . . Garrison . | . . . . . . Intercept . | . . . . . . Construction Impeded . | . . . . . . Haulers Reinforced . | . . . . . . Stealth | -11 -10 -10 -9 -9 -9 --------- Run | Scr Mat Min Mat Min Exi Distress Signals 3 | . 1 . 1 1 . Communications Jammed . | . . . . . . Distress Signals . | . . . . . . Times Spotted 61 | . 4 11 23 6 17 Peak Tracking Total 13 | . 4 3 5 8 13 Tactical Retreats 7 | . . 1 1 1 4 Traps | -11 -10 -10 -9 -9 -9 ------- Run | Scr Mat Min Mat Min Exi Traps Triggered 2 | . . . 2 . . Indirectly . | . . . . . . Trap Hack Attempts . | . . . . . . Triggered . | . . . . . . Disarmed . | . . . . . . Reprogrammed . | . . . . . . Reused . | . . . . . . Traps Extracted . | . . . . . . Installed . | . . . . . . Triggered . | . . . . . . Machines | -11 -10 -10 -9 -9 -9 ---------- Run | Scr Mat Min Mat Min Exi Machines Disabled 2 | . . . 2 . . Max in Single Turn 2 | . . . 2 . . Machines Sabotaged . | . . . . . . Garrisons Compromised . | . . . . . . Overloaded Fab Kills . | . . . . . . Fab Network Shutdowns . | . . . . . . Hacking | -11 -10 -10 -9 -9 -9 --------- Run | Scr Mat Min Mat Min Exi Machines Accessed 7 | . 2 . 4 . 1 Terminals 6 | . 2 . 4 . . Fabricators . | . . . . . . Repair Stations . | . . . . . . Recycling Units . | . . . . . . Scanalyzers . | . . . . . . Garrison Access . | . . . . . . Total Hacks 37 | . 6 . 8 . 23 Successful 27 | . 3 . 1 . 23 Failed 10 | . 3 . 7 . . Catastrophic 1 | . 1 . . . . Database Lockouts . | . . . . . . Manual 6 | . 3 . 3 . . Terminals 14 | . 6 . 8 . . Fabricators . | . . . . . . Repair Stations . | . . . . . . Recycling Units . | . . . . . . Scanalyzers . | . . . . . . Garrison Access . | . . . . . . Terminal Hacks 27 | . 3 . 1 . 23 Record 23 | . . . . . 23 Robot Analysis 1 | . 1 . . . . Prototype ID Bank 1 | . 1 . . . . Branch Access Points 2 | . 1 . 1 . . Fabricator Hacks . | . . . . . . Repair Station Hacks . | . . . . . . Recycling Unit Hacks . | . . . . . . Scanalyzer . | . . . . . . Garrison Access Hacks . | . . . . . . Unauthorized Hacks . | . . . . . . Terminals . | . . . . . . Fabricators . | . . . . . . Repair Stations . | . . . . . . Recycling Units . | . . . . . . Scanalyzers . | . . . . . . Garrison Access . | . . . . . . Data Cores Recovered . | . . . . . . Used . | . . . . . . Hacking Detections 6 | . 2 . 4 . . Full Trace Events . | . . . . . . Feedback Events . | . . . . . . Feedback Blocked . | . . . . . . Robot Schematics Acquired . | . . . . . . Robots Built . | . . . . . . Matter . | . . . . . . Time . | . . . . . . Total Robot Build Rating . | . . . . . . Part Schematics Acquired . | . . . . . . Parts Built . | . . . . . . Matter . | . . . . . . Time . | . . . . . . Total Part Build Rating . | . . . . . . Parts Repaired . | . . . . . . Time . | . . . . . . Parts Recycled . | . . . . . . Recycled Matter . | . . . . . . Retrieved Matter . | . . . . . . Retrieved Components . | . . . . . . Parts Scanalyzed . | . . . . . . Part Schematics Acquired . | . . . . . . Parts Damaged . | . . . . . . Bothacking | -11 -10 -10 -9 -9 -9 ------------ Run | Scr Mat Min Mat Min Exi Used RIF Installer . | . . . . . . Robots Hacked . | . . . . . . Non-combat . | . . . . . . Combat . | . . . . . . Robot Hacks Applied . | . . . . . . Relay Couplers Released . | . . . . . . Robots Rewired . | . . . . . . Allies Hacked . | . . . . . . Hacks Repelled . | . . . . . . Allies | -11 -10 -10 -9 -9 -9 -------- Run | Scr Mat Min Mat Min Exi Total Allies . | . . . . . . Largest Group . | . . . . . . Highest-Rated Group . | . . . . . . Highest-Rated Ally . | . . . . . . Total Orders . | . . . . . . Ally Attacks . | . . . . . . Total Damage . | . . . . . . Kills . | . . . . . . Allies Corrupted . | . . . . . . Allies Melted . | . . . . . . Intel | -11 -10 -10 -9 -9 -9 ------- Run | Scr Mat Min Mat Min Exi Robot Analysis Total 1 | . 1 . . . . Derelict Logs Recovered 2 | . . 2 . . . Drone Launches . | . . . . . . Drone Recoveries . | . . . . . . Exploration | -11 -10 -10 -9 -9 -9 ------------- Run | Scr Mat Min Mat Min Exi Turns Passed 2060 | 42 186 705 571 93 463 Spaces Moved 1272 | 31 128 485 304 40 284 Core 14 | 14 . . . . . Treads 1 | . . 1 . . . Legs 11 | . . . . . 11 Wheels 1245 | 17 128 484 304 40 272 Hover . | . . . . . . Flight 1 | . . . . . 1 Fastest Speed 50 | 50 100 120 120 130 50 Average Speed 123 | 90 114 120 127 130 131 Slowest Speed 180 | 150 120 180 130 130 180 Overloaded Moves . | . . . . . . Propulsion Burnouts . | . . . . . . Robots Hopped . | . . . . . . Cave-ins Triggered . | . . . . . . Exploration Rate (%) 41 | 4 29 90 38 17 73 Regions Visited 5 Branch Regions 3 Pre-discovered Areas 2 | . . 1 . . 1 Known Exits Taken 2 | . 1 . 1 . . Unknown Exits Taken 3 | 1 . 1 . 1 . Scrap Searched 2 | . . 2 . . . Spaces Dug . | . . . . . . Terrain Destroyed 38 | . . . 38 . . Melee . | . . . . . . Projectile . | . . . . . . AOE 38 | . . . 38 . . Actions | -11 -10 -10 -9 -9 -9 --------- Run | Scr Mat Min Mat Min Exi Total 1589 | 44 153 553 442 58 339 Wait 96 | . 3 16 59 . 18 Move 1267 | 30 127 484 303 39 284 Hop . | . . . . . . Pick Up 57 | 9 11 11 22 1 3 Fast Attach . | . . . . . . Attach 37 | 5 3 6 10 6 7 Detach . | . . . . . . Swap 6 | . . 1 4 . 1 Drop 24 | . 1 3 14 . 6 Fire 102 | . 8 32 30 12 20 Melee . | . . . . . . Ram . | . . . . . . Kick . | . . . . . . Crush . | . . . . . . Escape Stasis . | . . . . . . Rewire . | . . . . . . Trap . | . . . . . . Miscellaneous . | . . . . . . Route ------- -11/Scrapyard -10/Materials (discovered 2 exits: *Min x2) -10/Mines -9/Materials (discovered 2 exits: [*Mat] / *Min) -9/Mines -9/Exiles (discovered 1 exit: [*Min]) History --------- Turn | Location | Event 27 | -11/Scrapyard | Discovered new exit (range 15) 43 | -11/Scrapyard | Entered Materials 60 | -10/Materials | Identified exit to Mines 229 | -10/Materials | Entered Mines 240 | -10/Mines | Met a Derelict bent on vengeance 312 | -10/Mines | Build established: Mutant 328 | -10/Mines | Learned location of Mines (-8) 431 | -10/Mines | Learned Materials stockpile data 923 | -10/Mines | Discovered new exit (range 8) 934 | -10/Mines | Entered Materials 934 | -9/Materials | Evolved 2 slots: Utility x2 1232 | -9/Materials | Build established: Hauler-Mutant 1286 | -9/Materials | Identified exit to Mines 1370 | -9/Materials | Discovered new exit (range 8) 1505 | -9/Materials | Entered Mines 1506 | -9/Mines | Assembled infested the area 1577 | -9/Mines | Lost 6 parts (1p2n1u2w) 1593 | -9/Mines | Deemed a non-threat by the Exiles lab entrance 1593 | -9/Mines | Discovered new exit (range 5) 1598 | -9/Mines | Entered Exiles 1635 | -9/Exiles | Met 8R-AWN 1653 | -9/Exiles | Met EX-HEX 1701 | -9/Exiles | Met EX-DEC 1728 | -9/Exiles | Learned location of Zion (-7) 1764 | -9/Exiles | Discovered new exit (range 14) 1849 | -9/Exiles | Visited The Gauntlet 1936 | -9/Exiles | Attacked by the Exiles 1975 | -9/Exiles | System corruption reached 10% 1990 | -9/Exiles | Core integrity fell below 50% 2033 | -9/Exiles | Lost 7 parts (1p2n4w) 2045 | -9/Exiles | Core integrity fell below 20% 2061 | -9/Exiles | Destroyed by EX-DEC with AWS/EX-DEC Last Messages --------------- 02049_ HV Slug penetrates Testing Apparatus. 02051_ Penetrated by HV Slug. 02051_ Dropped Lrg. Storage Unit. 02053_ Dropped Sml. Laser. 02053_ Penetrated by HV Slug. 02053_ Dropped Hvy. Assault Rifle. 02055_ Penetrated by HV Slug. 02055_ HV Slug penetrates Machine. 02055_ Machine disabled. 02055_ Penetrated by HV Slug. 02055_ HV Slug penetrates Machine. 02056_ Acquired VTOL Module. 02058_ EX-BIN: "I just want to science!" 02058_ Penetrated by HV Slug. 02058_ HV Slug penetrates Machine. 02058_ Penetrated by HV Slug. 02058_ HV Slug penetrates Wall. 02058_ Dropped Imp. Targeting Computer. 02059_ Acquired VTOL Module. 02060_ HV Slug penetrates Wall. Map ----- +----------------------------------------------------+ | ??????????????????????????????#"""" | | ??????????????????????????????#"" "" | | ??????????????????????????????#" """"# | | ??????????????????????????????#""" """# | | ??????????????????????????????## ""## | | ???????????????????????????????#"" """##? | | ???????????????????????????????##""" ##?? | | ????????????????????????????????##"""" ##??? | | ?????????????????????????????????### #???? | | ???????????????????????????????????##### ##???? | | ???????????????????????????????????????## #????? | | ????????????????????????????????????????# #????? | | ????????????????????????????????????????# #????? | | ????????????????????????????????????????# #????? | | ????????#######??????#####????####??????# #????? | | ???????#"""""""????"""""""#???""""""????# #????? | | ????????"" ""???#"""""""#???"""""""???# #????? | | ???????#" "???"""""" "#??#" """"#??# #????? | | ????????"" "?#""#""" """#???"" """???# #????? | | ????????"" "?#""#"" ""????"" ""???# #????? | | ??########"""###""###"""########"""###### ###### | | ??#"""" "" """" " [*[""""""" """""" """""" | | ??#" "" *!]"""""" z c | | ??#""" %%!!*g c c z | | ??#"""" % ! | | ??#"" ! @ = = | | ??#""" "" %* %* "" | | ??#"" """ " " """"" ! " """" """" | | ??########"""########"""###""###"""########"""#### | | ????????"" "?????"" ""#""#"" ""????"" ""?? | | ???????#""" ""????#""" ""#""#""" ""#??#"" """#? | | ???????#" """ "???#" """"""""#" " "#??#"""""""#? | | ????????"""""""???#"""""""#???"""""""#???"" """"?? | | ????????"""""""???#"""""""?????""""""#???""""""??? | | ?????????????????????#"##?????????????????###????? | | ?????????????????????????????????????????????????? | | ?????????????????????????????????????????????????? | | ?????????????????????????????????????????????????? | | ?????????????????????????????????????????????????? | | | | | | | | | | | | | | | | | | | | | | | +----------------------------------------------------+ Best States ------------- Heat Dissipation 28 Energy Generation 14 Energy Capacity 250 Matter Stores 300 Matter Capacity 300 Sight Range 16 Terrain Scan Density 10 Armor Coverage 150 Evasion (%) 40 Recoil Reduction 1 Item Schematics ----------------- None Robot Schematics ------------------ None Fabricated ------------ Nothing Alien Tech Used ----------------- None Achievements -------------- None Challenges ------------ None Game ------ Seed DroneChainExoskeleton Manual? 0 Play Time 00:53:00 Cumulative 9.6 hours Start 2019.12.27 @ 19:01:54 End 2019.12.28 @ 01:19:15 Sessions 1 Manual Loads 0 Difficulty Rogue Special Mode None Game No. 7 Rogue 7 Adventurer 0 Explorer 0 Win Type - Total 0 Types 0/0/0/0/0/0/0 Lore% 13 Gallery% 11 Achievement% 14 Wizard Run 0 Options --------- ASCII 0 Keyboard 0 Movement Arrows Keybinds 0 Fullscreen 1 Font 18/SmallcapsGlow Map View 76x50 Tactical HUD 1 Map Filters NONE Filters NONE Steam 1 RUN: 49efc4af-4f64-49eb-9d07-44ab903f645d